fUSD/lending_fUSD_20241123
["ID","MTS","AMOUNT","RATE_DAILY","PERIOD"]
[343085635,1732342614541,-635.127808,0.00053085,120]
[343085636,1732342614569,-687.41,0.00053085,120]
[343085637,1732342614593,-687.41,0.00053085,120]
[343085638,1732342614616,-151.0,0.00053085,120]
[343085639,1732342614642,-303.25481082,0.00053085,120]
[343085640,1732342614666,-635.127808,0.00053085,120]
[343085641,1732342614689,-3475.21,0.00053085,120]
[343085642,1732342614713,-3475.21,0.00053085,120]
[343085643,1732342614740,-3475.21,0.00053085,120]
[343085644,1732342614764,-3475.21,0.00053085,120]
[343085645,1732342614908,-3475.21,0.00053085,120]
[343085646,1732342614937,-3475.21,0.00053085,120]
[343085647,1732342614961,-151.0,0.00053085,120]
[343085648,1732342614989,-151.0,0.00053085,120]
[343085649,1732342615013,-260.762851,0.00053085,120]
[343085650,1732342615038,-260.762851,0.00053085,120]
[343085651,1732342615064,-641.56,0.00053085,120]
[343085652,1732342615094,-641.56,0.00053085,120]
[343085653,1732342615119,-641.56,0.00053085,120]
[343085654,1732342615144,-641.56,0.00053085,120]
[343085655,1732342615170,-641.56,0.00053085,120]
[343085656,1732342615197,-260.762851,0.00053085,120]
[343085657,1732342615222,-260.762851,0.00053085,120]
[343085658,1732342615248,-151.0,0.00053085,120]
[343085659,1732342615273,-151.0,0.00053085,120]
[343085660,1732342615297,-151.0,0.00053085,120]
[343085661,1732342615345,-151.0,0.00053085,7]
[343085662,1732342615397,-151.0,0.00053085,120]
[343085663,1732342615424,-151.0,0.00053085,7]
[343085664,1732342615450,-1101.99,0.00053085,120]
[343085665,1732342615489,-1101.99,0.00053085,120]
[343085666,1732342615516,-1101.99,0.00053085,120]
[343085667,1732342615545,-1101.99,0.00053085,120]
[343085668,1732342615573,-1101.99,0.00053085,120]
[343085669,1732342615598,-1101.99,0.00053085,120]
[343085670,1732342615623,-4754.49,0.00053085,120]
[343085671,1732342615648,-4754.49,0.00053085,120]
[343085672,1732342615673,-4754.49,0.00053085,120]
[343085673,1732342615701,-4754.49,0.00053085,120]
[343085674,1732342615731,-4754.49,0.00053085,120]
[343085675,1732342615757,-4754.49,0.00053085,120]
[343085676,1732342615784,-992.6,0.00053085,120]
[343085677,1732342615809,-992.6,0.00053085,120]
[343085678,1732342615835,-992.6,0.00053085,120]
[343085679,1732342615862,-992.6,0.00053085,120]
[343085680,1732342615886,-992.6,0.00053085,120]
[343085681,1732342615911,-3985.29,0.00053085,120]
[343085682,1732342615937,-3985.29,0.00053085,120]
[343085683,1732342615963,-992.6,0.00053085,120]
[343085684,1732342615999,-3985.29,0.00053085,120]
[343085685,1732342616026,-3985.29,0.00053085,120]
[343085686,1732342616052,-3985.29,0.00053085,120]
[343085687,1732342616077,-3985.29,0.00053085,120]
[343085688,1732342616104,-500.0,0.00053085,120]
[343085689,1732342616130,-500.0,0.00053085,120]
[343085690,1732342616157,-500.0,0.00053085,120]
[343085691,1732342616182,-500.0,0.00053085,120]
[343085692,1732342616209,-500.0,0.00053085,120]
[343085693,1732342616238,-555.74,0.00053085,120]
[343085694,1732342616263,-3964.32,0.00053085,120]
[343085695,1732342616287,-3964.32,0.00053085,120]
[343085696,1732342616312,-3159.25,0.00053085,120]
[343085697,1732342616335,-3964.32,0.00053085,120]
[343085698,1732342616358,-3159.25,0.00053085,120]
[343085699,1732342616381,-3964.32,0.00053085,120]
[343085700,1732342616405,-3964.32,0.00053085,120]
[343085701,1732342616428,-3159.25,0.00053085,120]
[343085702,1732342616452,-3159.25,0.00053085,120]
[343085703,1732342616481,-3964.32,0.00053085,120]
[343085704,1732342616510,-3159.25,0.00053085,120]
[343085705,1732342616535,-3159.25,0.00053085,120]
[343085706,1732342616560,-930.438475,0.00053085,120]
[343085707,1732342616683,-151.0,0.00053085,120]
[343085708,1732342616709,-930.438475,0.00053085,120]
[343085709,1732342616741,-151.0,0.00053085,120]
[343085710,1732342616768,-930.438475,0.00053085,120]
[343085711,1732342616793,-203.949362,0.00053085,120]
[343085712,1732342616821,-930.438475,0.00053085,120]
[343085713,1732342616845,-203.949362,0.00053085,120]
[343085714,1732342616869,-161.138296,0.00053085,120]
[343085715,1732342616897,-161.138296,0.00053085,120]
[343085716,1732342616922,-161.138296,0.00053085,120]
[343085717,1732342616946,-151.0,0.00053085,120]
[343085718,1732342616972,-497.645494,0.00053085,120]
[343085719,1732342616997,-184.236946,0.00053085,120]
[343085720,1732342617023,-497.645494,0.00053085,120]
[343085721,1732342617048,-203.949362,0.00053085,120]
[343085722,1732342617073,-203.949362,0.00053085,120]
[343085723,1732342617099,-497.645494,0.00053085,120]
[343085724,1732342617124,-1083.4,0.00053085,120]
[343085725,1732342617151,-500.0,0.00053085,120]
[343085726,1732342617175,-1083.4,0.00053085,120]
[343085727,1732342617200,-500.0,0.00053085,120]
[343085728,1732342617229,-1083.4,0.00053085,120]
[343085729,1732342617254,-497.645494,0.00053085,120]
[343085730,1732342617280,-591.86,0.00053085,120]
[343085731,1732342617304,-1083.4,0.00053085,120]
[343085732,1732342617330,-1083.4,0.00053085,120]
[343085733,1732342617356,-1083.4,0.00053085,120]
[343085734,1732342617380,-1226.91,0.00053085,120]
[343085735,1732342617405,-1226.91,0.00053085,120]
[343085736,1732342617431,-1226.91,0.00053085,120]
[343085737,1732342617457,-1226.91,0.00053085,120]
[343085738,1732342617488,-1226.91,0.00053085,120]
[343085739,1732342617513,-1226.91,0.00053085,120]
[343085740,1732342617539,-500.0,0.00053085,120]
[343085741,1732342617567,-500.0,0.00053085,120]
[343085742,1732342617591,-267.08,0.00053085,120]
[343085743,1732342617617,-1215.72,0.00053085,120]
[343085744,1732342617645,-1215.72,0.00053085,120]
[343085745,1732342617671,-1215.72,0.00053085,120]
[343085746,1732342617697,-1215.72,0.00053085,120]
[343085747,1732342617723,-1215.72,0.00053085,120]
[343085748,1732342617747,-207.46,0.00053085,120]
[343085749,1732342617772,-523.08887622,0.00053085,120]
[343085750,1732342617798,-1095.93,0.00053085,120]
[343085751,1732342617822,-1095.93,0.00053085,120]
[343085752,1732342617849,-1095.93,0.00053085,120]
[343085753,1732342617886,-1095.93,0.00053085,120]
[343085754,1732342617911,-1095.93,0.00053085,120]
[343085755,1732342617935,-1095.93,0.00053085,120]
[343085756,1732342617959,-3751.45,0.00053085,120]
[343085757,1732342617983,-3751.45,0.00053085,120]
[343085758,1732342618009,-3751.45,0.00053085,120]
[343085759,1732342618035,-3751.45,0.00053085,120]
[343085760,1732342618061,-3751.45,0.00053085,120]
[343085761,1732342618085,-3751.45,0.00053085,120]
[343085762,1732342618109,-151.559965,0.00053085,120]
[343085763,1732342618134,-151.559965,0.00053085,120]
[343085764,1732342618158,-151.559965,0.00053085,120]
[343085765,1732342618182,-151.559965,0.00053085,120]
[343085766,1732342618285,-151.559965,0.00053085,120]
[343085767,1732342618310,-151.559965,0.00053085,120]
[343085768,1732342618335,-500.0,0.00053085,120]
[343085769,1732342618359,-500.0,0.00053085,120]
[343085770,1732342618385,-500.0,0.00053085,120]
[343085771,1732342618409,-500.0,0.00053085,120]
[343085772,1732342618435,-500.0,0.00053085,120]
[343085773,1732342618461,-500.0,0.00053085,120]
[343085774,1732342618492,-439.07,0.00053085,120]
[343085775,1732342618518,-439.07044018,0.00053085,120]
[343085776,1732342618544,-516.16109641,0.00053085,120]
[343085777,1732342618570,-182.213589,0.00053085,120]
[343085778,1732342618595,-3370.76,0.00053085,120]
[343085779,1732342618619,-3370.76,0.00053085,120]
[343085780,1732342618645,-3370.76,0.00053085,120]
[343085781,1732342618671,-3370.76,0.00053085,120]
[343085782,1732342618695,-3370.76,0.00053085,120]
[343085783,1732342618726,-3370.76,0.00053085,120]
[343085784,1732342618751,-3934.26,0.00053085,120]
[343085785,1732342618790,-3934.26,0.00053085,120]
[343085786,1732342618814,-3934.26,0.00053085,120]
[343085787,1732342618840,-3934.26,0.00053085,120]
[343085788,1732342618864,-3934.26,0.00053085,120]
[343085789,1732342618888,-3934.26,0.00053085,120]
[343085790,1732342618913,-151.0,0.00053086,120]
[343085791,1732342618937,-151.0,0.00053086,120]
[343085792,1732342618961,-151.0,0.00053086,120]
[343085793,1732342618986,-151.0,0.00053086,120]
[343085794,1732342619011,-151.0,0.00053086,120]
[343085795,1732342619037,-151.0,0.00053086,120]
[343085796,1732342619062,-151.0,0.00053086,120]
[343085797,1732342619086,-151.0,0.00053086,120]
[343085798,1732342619110,-384.201772,0.00053086,120]
[343085799,1732342619135,-384.201772,0.00053086,120]
[343085800,1732342619161,-151.0,0.00053086,120]
[343085801,1732342619184,-151.0,0.00053086,120]
[343085802,1732342619207,-384.201772,0.00053086,120]
[343085803,1732342619233,-384.201772,0.00053086,120]
[343085804,1732342619256,-151.0,0.00053086,120]
[343085805,1732342619281,-151.0,0.00053086,120]
[343085806,1732342619305,-212.254282,0.00053086,120]
[343085807,1732342619328,-212.254282,0.00053086,120]
[343085808,1732342619352,-212.254282,0.00053086,120]
[343085809,1732342619376,-212.254282,0.00053086,120]
[343085810,1732342619401,-384.328928,0.00053086,30]
[343085811,1732342619425,-384.328928,0.00053086,30]
[343085812,1732342619448,-384.328928,0.00053086,30]
[343085813,1732342619474,-384.328928,0.00053086,30]
[343085814,1732342619501,-237.02391,0.00053086,120]
[343085815,1732342619525,-237.02391,0.00053086,120]
[343085816,1732342619549,-237.02391,0.00053086,120]
[343085817,1732342619577,-237.02391,0.00053086,120]
[343085818,1732342619600,-208.969244,0.00053086,120]
[343085819,1732342619624,-208.969244,0.00053086,120]
[343085820,1732342619649,-208.969244,0.00053086,120]
[343085821,1732342619675,-208.969244,0.00053086,120]
[343085822,1732342619791,-4815.3519,0.00053086,120]
[343085823,1732342619817,-4815.3519,0.00053086,120]
[343085824,1732342619841,-4815.3519,0.00053086,120]
[343085825,1732342619865,-4815.3519,0.00053086,120]
[343085826,1732342619890,-153.727938,0.00053086,120]
[343085827,1732342619914,-153.727938,0.00053086,120]
[343085828,1732342619939,-151.0,0.00053086,120]
[343085829,1732342619963,-151.0,0.00053086,120]
[343085830,1732342619996,-151.0,0.00053086,120]
[343085831,1732342620024,-153.727938,0.00053086,120]
[343085832,1732342620052,-153.727938,0.00053086,120]
[343085833,1732342620080,-151.0,0.00053086,120]
[343085834,1732342620106,-151.0,0.00053086,120]
[343085835,1732342620131,-635.127808,0.00053086,120]
[343085836,1732342620155,-635.127808,0.00053086,120]
[343085837,1732342620180,-266.342679,0.00053086,120]
[343085838,1732342620205,-635.127808,0.00053086,120]
[343085839,1732342620231,-635.127808,0.00053086,120]
[343085840,1732342620256,-151.0,0.00053086,120]
[343085841,1732342620281,-151.0,0.00053086,120]
[343085842,1732342620307,-151.0,0.00053086,120]
[343085843,1732342620332,-260.762851,0.00053086,120]
[343085844,1732342620357,-260.762851,0.00053086,120]
[343085845,1732342620382,-260.762851,0.00053086,120]
[343085846,1732342620406,-260.762851,0.00053086,120]
[343085847,1732342620431,-260.762851,0.00053086,120]
[343085848,1732342620457,-260.762851,0.00053086,120]
[343085849,1732342620485,-151.0,0.00053086,120]
[343085850,1732342620510,-151.0,0.00053086,120]
[343085851,1732342620536,-151.0,0.00053086,120]
[343085852,1732342620563,-151.0,0.00053086,120]
[343085853,1732342620588,-151.0,0.00053086,7]
[343085854,1732342620613,-151.0,0.00053086,120]
[343085855,1732342620639,-151.0,0.00053086,7]
[343085856,1732342620663,-151.0,0.00053086,7]
[343085857,1732342620688,-151.0,0.00053086,120]
[343085858,1732342620713,-930.438475,0.00053086,120]
[343085859,1732342620741,-151.0,0.00053086,120]
[343085860,1732342620765,-930.438475,0.00053086,120]
[343085861,1732342620789,-930.438475,0.00053086,120]
[343085862,1732342620815,-151.0,0.00053086,120]
[343085863,1732342620838,-151.0,0.00053086,120]
[343085864,1732342620862,-930.438475,0.00053086,120]
[343085865,1732342620888,-203.949362,0.00053086,120]
[343085866,1732342620912,-930.438475,0.00053086,120]
[343085867,1732342620939,-203.949362,0.00053086,120]
[343085868,1732342620964,-930.438475,0.00053086,120]
[343085869,1732342620994,-203.949362,0.00053086,120]
[343085870,1732342621020,-497.645494,0.00053086,120]
[343085871,1732342621047,-497.645494,0.00053086,120]
[343085872,1732342621073,-497.645494,0.00053086,120]
[343085873,1732342621100,-203.949362,0.00053086,120]
[343085874,1732342621126,-203.949362,0.00053086,120]
[343085875,1732342621150,-203.949362,0.00053086,120]
[343085876,1732342621176,-497.645494,0.00053086,120]
[343085877,1732342621284,-497.645494,0.00053086,120]
[343085878,1732342621311,-497.645494,0.00053086,120]
[343085879,1732342621336,-151.559965,0.00053086,120]
[343085880,1732342621361,-151.559965,0.00053086,120]
[343085881,1732342621385,-151.559965,0.00053086,120]
[343085882,1732342621409,-151.559965,0.00053086,120]
[343085883,1732342621433,-151.559965,0.00053086,120]
[343085884,1732342621458,-151.559965,0.00053086,120]
[343085885,1732342621485,-151.559965,0.00053086,120]
[343085886,1732342621510,-151.55997,0.00053086,120]
[343085887,1732342621537,-3716.05,0.00053087,120]
[343085888,1732342621562,-641.56,0.00053087,120]
[343085889,1732342621588,-500.0,0.00053087,120]
[343085890,1732342621614,-1215.72,0.00053087,120]
[343085891,1732342621639,-500.0,0.00053088,120]
[343085892,1732342621663,-1193.71,0.00053088,120]
[343085893,1732342621687,-655.66,0.00053088,120]
[343085894,1732342621711,-1301.82,0.00053088,120]
[343085895,1732342621739,-2754.82,0.00053088,120]
[343085896,1732342621763,-632.85935454,0.00053088,120]
[343085897,1732342621787,-500.0,0.00053088,120]
[343085898,1732342621811,-500.0,0.00053088,120]
[343085899,1732342621835,-500.0,0.00053088,120]
[343085900,1732342621858,-1980.23,0.00053088,120]
[343085901,1732342621881,-1005.48,0.00053088,120]
[343085902,1732342621914,-212.254282,0.00053088,120]
[343085903,1732342621942,-212.254282,0.00053088,120]
[343085904,1732342621967,-384.328928,0.00053088,30]
[343085905,1732342621995,-384.328928,0.00053088,30]
[343085906,1732342622021,-237.02391,0.00053088,120]
[343085907,1732342622048,-500.0,0.00053088,120]
[343085908,1732342622074,-237.02391,0.00053088,120]
[343085909,1732342622100,-4815.3519,0.00053088,120]
[343085910,1732342622126,-2538.18,0.00053088,120]
[343085911,1732342622158,-4815.3519,0.00053088,120]
[343085912,1732342622183,-151.0,0.00053088,120]
[343085913,1732342622208,-635.127808,0.00053088,120]
[343085914,1732342622239,-635.127808,0.00053088,120]
[343085915,1732342622266,-150.0,0.00053445,120]
[343085916,1732342622292,-2000.0,0.00053611,15]
[343085917,1732342622319,-200.0,0.00053611,15]
[343085918,1732342622345,-909.59439504,0.00053621,10]
[343085919,1732342622371,-500.0,0.00053621,2]
[343085920,1732342622396,-166.85,0.00053628,2]
[343085921,1732342622422,-1517.54018431,0.00053871,15]
[343085922,1732342622450,-4698.4141453,0.00053871,15]
[343085923,1732342622481,-200.0,0.00054,120]
[343085924,1732342622507,-2000.0,0.00054147,15]
[343085925,1732342622533,-200.0,0.00054147,15]
[343085926,1732342622559,-2033.18607,0.0005423,69]
[343085927,1732342622589,-2033.18608,0.000543,69]
[343085928,1732342622616,-2033.18608,0.0005438,70]
[343085929,1732342622764,-2033.18607,0.0005446,70]
[343085930,1732342622789,-2033.18608,0.0005451,70]
[343085931,1732342622815,-2033.18607,0.0005451,70]
[343085932,1732342622839,-200.0,0.00054688,15]
[343085933,1732342622866,-1517.54018431,0.00054762,15]
[343085934,1732342622891,-4698.4141453,0.00054762,15]
[343085935,1732342622918,-4864.3,0.0005479,120]
[343085936,1732342622944,-500.0,0.00054794,120]
[343085937,1732342622973,-500.0,0.00054794,120]
[343085938,1732342622999,-500.0,0.00054794,120]
[343085939,1732342623029,-500.0,0.00054794,120]
[343085940,1732342623056,-500.0,0.00054794,120]
[343085941,1732342623082,-500.0,0.00054794,120]
[343085942,1732342623108,-247.192285,0.00054794,120]
[343085943,1732342623134,-247.192285,0.00054794,120]
[343085944,1732342623165,-151.0,0.00054794,120]
[343085945,1732342623193,-350.0,0.00054794,120]
[343085946,1732342623218,-234.169048,0.00054794,120]
[343085947,1732342623247,-1210.07,0.00054794,120]
[343085948,1732342623274,-1210.07,0.00054794,120]
[343085949,1732342623300,-1210.07,0.00054794,120]
[343085950,1732342623329,-1210.07,0.00054794,120]
[343085951,1732342623355,-1210.07,0.00054794,120]
[343085952,1732342623380,-1210.07,0.00054794,120]
[343085953,1732342623408,-1210.07,0.00054794,120]
[343085954,1732342623436,-1210.07,0.00054794,120]
[343085955,1732342623463,-1210.07,0.00054794,120]
[343085956,1732342623501,-150.0,0.00054815,120]
[343085957,1732342623529,-842.67,0.00054983,2]
[343085958,1732342623771,500.0,0.00053084,120]
[343085959,1732342623801,3572.06,0.00053079,120]
[343085960,1732342623936,500.0,0.00053085,120]
[343085961,1732342623967,3572.06,0.0005308,120]
[343085962,1732342624002,500.0,0.00053085,120]
[343085963,1732342624041,500.0,0.00053085,120]
[343085964,1732342624075,3572.06,0.00053084,120]
[343085965,1732342624105,500.0,0.00053085,120]
[343085966,1732342624136,3572.06,0.00053085,120]
[343085967,1732342624167,203.93,0.00053085,120]
[343085968,1732342624214,500.0,0.0005308,120]
[343085969,1732342624246,500.0,0.00053079,120]
[343085970,1732342624276,3572.06,0.00053085,120]
[343085971,1732342624307,500.0,0.0005308,120]
[343085972,1732342624336,221.67030768,0.0005308,120]
[343085973,1732342624380,503.6901078,0.0005308,120]
[343085974,1732342624411,3572.06,0.00053085,120]
[343085975,1732342624450,3572.06,0.00053085,120]
[343085976,1732342624491,3572.06,0.00053085,120]
[343085977,1732342624525,3572.06,0.00053085,120]
[343085978,1732342624650,2720.5,0.0005308,120]
[343085979,1732342624751,2720.5,0.0005308,120]
[343085980,1732342624811,2720.5,0.0005308,120]
[343085981,1732342624858,2720.5,0.0005308,120]
[343085982,1732342624910,2720.5,0.0005308,120]
[343085983,1732342624963,500.0,0.00053079,120]
[343085984,1732342625020,500.0,0.0005308,120]
[343085985,1732342625081,437.91,0.00053083,120]
[343085986,1732342625140,2720.5,0.0005308,120]
[343085987,1732342625227,500.0,0.00053079,120]
[343085988,1732342625523,500.0,0.0005308,120]
[343085989,1732342625585,500.0,0.00053083,120]
[343085990,1732342625620,500.66312061,0.0005308,120]
[343085991,1732342625657,500.0,0.00053084,120]
[343085992,1732342625695,500.0,0.00053079,120]
[343085993,1732342625732,500.0,0.00053085,120]
[343085994,1732342625772,500.0,0.0005308,120]
[343085995,1732342625805,500.0,0.00053085,120]
[343085996,1732342625846,500.0,0.00053083,120]
[343085997,1732342625898,517.11,0.00053085,120]
[343085998,1732342625927,350.36,0.00053084,120]
[343085999,1732342626087,500.0,0.00053079,120]
[343086000,1732342626133,500.0,0.00053079,120]
[343086001,1732342626164,500.0,0.0005308,120]
[343086002,1732342626263,275.6175226,0.00053083,120]
[343086003,1732342626314,500.0,0.00053079,120]
[343086004,1732342626365,10000000.0,0.00055,120]
[343086005,1732342626417,1037.51267,0.0005308,120]
[343086006,1732342626460,500.0,0.00053079,120]
[343086007,1732342626495,1037.51267,0.00053081,120]
[343086008,1732342626528,350.06,0.0005308,120]
[343086009,1732342626565,1037.51267,0.00053081,120]
[343086010,1732342626609,1037.51267,0.00053085,120]
[343086011,1732342626643,629.18,0.00053079,120]
[343086012,1732342626751,1037.51267,0.00053085,120]
[343086013,1732342626782,1037.51267,0.00053085,120]
[343086014,1732342626814,500.0,0.00053079,120]
[343086015,1732342626843,500.0,0.0005308,120]
[343086016,1732342626873,1037.51267,0.00053086,120]
[343086017,1732342626910,500.0,0.00053083,120]
[343086018,1732342626941,366.72,0.00053084,120]
[343086019,1732342626970,1037.51267,0.00053086,120]
[343086020,1732342627070,1037.51267,0.00053086,120]
[343086021,1732342627101,500.0,0.0005308,120]
[343086022,1732342627133,500.0,0.00053079,120]
[343086023,1732342627166,500.0,0.00053079,120]
[343086024,1732342627207,500.0,0.0005308,120]
[343086025,1732342627257,1037.51267,0.00053086,120]
[343086026,1732342627337,500.0,0.00053079,120]
[343086027,1732342627542,500.0,0.0005308,120]
[343086028,1732342627575,500.0,0.0005308,120]
[343086029,1732342627604,500.0,0.0005308,120]
[343086030,1732342627633,500.0,0.00053085,120]
[343086031,1732342627663,500.0,0.0005308,120]
[343086032,1732342627700,466.48,0.00053085,120]
[343086033,1732342627736,1037.51267,0.0005308,120]
[343086034,1732342627770,500.0,0.0005308,120]
[343086035,1732342627799,500.0,0.00053079,120]
[343086036,1732342627833,1037.51267,0.00053081,120]
[343086037,1732342627863,371.43226163,0.0005308,120]
[343086038,1732342627903,1037.51267,0.00053081,120]
[343086039,1732342627950,1037.51267,0.00053085,120]
[343086040,1732342627997,1037.51267,0.00053085,120]
[343086041,1732342628037,1037.51267,0.00053085,120]
[343086042,1732342628085,1037.51267,0.00053086,120]
[343086043,1732342628129,500.0,0.00053079,120]
[343086044,1732342628170,500.0,0.00053079,120]
[343086045,1732342628214,500.0,0.0005308,120]
[343086046,1732342628249,547.09,0.00053083,120]
[343086047,1732342628331,1037.51267,0.00053086,120]
[343086048,1732342628365,1263.99,0.0005308,120]
[343086049,1732342628402,1037.51267,0.00053086,120]
[343086050,1732342628434,1263.99,0.0005308,120]
[343086051,1732342628472,500.0,0.00053079,120]
[343086052,1732342628506,1263.99,0.0005308,120]
[343086053,1732342628548,1037.512675,0.00053086,120]
[343086054,1732342628586,1263.99,0.0005308,120]
[343086055,1732342628638,1263.99,0.0005308,120]
[343086056,1732342628676,1263.99,0.0005308,120]
[343086057,1732342628739,533.53,0.00053079,120]
[343086058,1732342628780,500.0,0.00053079,120]
[343086059,1732342628814,500.0,0.0005308,120]
[343086060,1732342628846,194.98,0.00053083,120]
[343086061,1732342628882,500.0,0.00053079,120]
[343086062,1732342628919,597.33,0.00053079,120]
[343086063,1732342628948,517.44,0.0005308,120]
[343086064,1732342628981,483.80026002,0.00052985,25]
[343086065,1732342629116,500.0,0.0005308,120]
[343086066,1732342629181,500.0,0.00053079,120]
[343086067,1732342629209,584.91906039,0.00053079,120]
[343086068,1732342629243,500.0,0.0005308,120]
[343086069,1732342629383,1412.82,0.00053079,120]
[343086070,1732342629417,1412.82,0.0005308,120]
[343086071,1732342629447,3354.27,0.00053079,120]
[343086072,1732342629480,1412.82,0.00053083,120]
[343086073,1732342629510,3354.27,0.0005308,120]
[343086074,1732342629541,500.0,0.0005308,120]
[343086075,1732342629572,1412.82,0.00053084,120]
[343086076,1732342629604,500.0,0.0005308,120]
[343086077,1732342629633,3354.27,0.00053084,120]
[343086078,1732342629664,1412.82,0.00053085,120]
[343086079,1732342629694,208.12,0.0005308,120]
[343086080,1732342629727,3354.27,0.00053085,120]
[343086081,1732342629758,1412.82,0.00053085,120]
[343086082,1732342629791,3354.27,0.00053085,120]
[343086083,1732342629820,1412.82,0.00053085,120]
[343086084,1732342629857,3354.27,0.00053085,120]
[343086085,1732342629889,1412.82,0.00053085,120]
[343086086,1732342629931,3354.27,0.00053085,120]
[343086087,1732342629960,1412.82,0.00053085,120]
[343086088,1732342629991,3354.27,0.00053085,120]
[343086089,1732342630020,1412.82,0.00053085,120]
[343086090,1732342630049,557.25,0.0005265,2]
[343086091,1732342630077,3354.27,0.00053085,120]
[343086092,1732342630111,775.88,0.00053079,120]
[343086093,1732342630147,775.88,0.0005308,120]
[343086094,1732342630335,775.88,0.00053084,120]
[343086095,1732342630371,775.88,0.00053085,120]
[343086096,1732342630403,500.0,0.0005308,120]
[343086097,1732342630442,775.88,0.00053085,120]
[343086098,1732342630472,500.0,0.0005308,120]
[343086099,1732342630517,500.0,0.0005308,120]
[343086100,1732342630560,534.64,0.00053079,120]
[343086101,1732342630592,775.88,0.00053085,120]
[343086102,1732342630639,1021.24,0.0005308,120]
[343086103,1732342630673,156.11052656,0.0005308,120]
[343086104,1732342630705,2273.0,0.000534,2]
[343086105,1732342630734,775.88,0.00053085,120]
[343086106,1732342630767,1021.24,0.0005308,120]
[343086107,1732342630799,775.88,0.00053085,120]
[343086108,1732342630834,775.88,0.00053085,120]
[343086109,1732342630897,1021.24,0.0005308,120]
[343086110,1732342630946,1021.24,0.0005308,120]
[343086111,1732342631004,1021.24,0.0005308,120]
[343086112,1732342631045,1021.24,0.0005308,120]
[343086113,1732342631754,513.38157723,0.0005308,120]
[343086114,1732342632123,3218.77,0.00053079,120]
[343086115,1732342632392,3218.77,0.0005308,120]
[343086116,1732342632425,151.0,0.0005308,120]
[343086117,1732342632646,3218.77,0.00053084,120]
[343086118,1732342632911,3218.77,0.00053085,120]
[343086119,1732342632961,151.0,0.00053081,120]
[343086120,1732342633046,500.0,0.00053079,120]
[343086121,1732342633175,3218.77,0.00053085,120]
[343086122,1732342633310,424.55006264,0.0005308,120]
[343086123,1732342633436,3218.77,0.00053085,120]
[343086124,1732342633619,151.0,0.00053081,120]
[343086125,1732342633706,3218.77,0.00053085,120]
[343086126,1732342633970,547.95,0.00053079,120]
[343086127,1732342634010,3218.77,0.00053085,120]
[343086128,1732342634081,151.0,0.00053085,120]
[343086129,1732342634190,547.95,0.0005308,120]
[343086130,1732342634221,3218.77,0.00053085,120]
[343086131,1732342634438,547.95,0.00053083,120]
[343086132,1732342634555,151.0,0.00053085,120]
[343086133,1732342634697,547.95,0.00053084,120]
[343086134,1732342634960,547.95,0.00053085,120]